bitfinex/quotes_BTCUSD_20260310
["timestamp","ask_amount","ask_price","bid_price","bid_amount"]
[1773168069511,0.00541821,70088.0,70033.0,0.0005064]
[1773168069512,0.00541821,70088.0,70033.0,0.00012]
[1773168069513,0.00023,70075.0,70033.0,0.00012]
[1773168069691,0.00532939,70063.0,70033.0,0.07151463]
[1773168070005,0.002,70061.0,70033.0,0.07151463]
[1773168070189,0.00152,70060.0,70033.0,0.07151463]
[1773168070388,0.00152,70060.0,70034.0,0.00148]
[1773168070620,0.00152,70060.0,70035.0,0.00148]
[1773168070822,0.00152,70060.0,70033.0,0.07151463]
[1773168070823,0.00532939,70059.0,70033.0,0.07151463]
[1773168071024,0.03,70049.0,70033.0,0.00012]
[1773168071142,0.00037542,70060.0,70033.0,0.00012]
[1773168071343,0.11081559,70076.0,70033.0,0.00012]
[1773168071344,0.05542204,70067.0,70050.0,0.00023]
[1773168071547,0.00487895,70066.0,70040.0,0.00562]
[1773168071759,0.00487895,70064.0,70040.0,0.00562]
[1773168072410,0.03017763,70059.0,70040.0,0.00562]
[1773168072774,0.03017763,70059.0,70033.0,0.00012]
[1773168072775,0.00487895,70058.0,70033.0,0.00012]
[1773168073107,0.00487895,70055.0,70033.0,0.00012]
[1773168073320,0.03,70053.0,70035.0,0.07139287]
[1773168073524,0.00152,70052.0,70035.0,0.07139287]
[1773168074486,0.00152,70052.0,70035.0,0.07614148]
[1773168074890,0.00152,70052.0,70036.0,0.00474861]
[1773168074891,0.00134237,70052.0,70036.0,0.00474861]
[1773168075297,0.00017763,70051.0,70037.0,0.07139083]
[1773168075484,0.03,70053.0,70038.0,0.00474861]
[1773168075827,0.06113647,70054.0,70039.0,0.00152]
[1773168076367,0.00152,70061.0,70039.0,0.00152]
[1773168076573,0.03772159,70065.0,70050.0,0.16273044]
[1773168076775,0.03772159,70065.0,70048.0,0.00474861]
[1773168077009,0.03772159,70065.0,70049.0,0.00152]
[1773168077192,0.00152,70064.0,70047.0,0.00152]
[1773168077401,0.00152,70064.0,70047.0,0.07137962]
[1773168078003,0.00152,70064.0,70043.0,0.00152]
[1773168078004,0.00152,70064.0,70035.0,0.07139287]
[1773168078206,0.00152,70064.0,70030.0,0.16273044]
[1773168078207,0.00152,70064.0,70030.0,0.07139744]
[1773168078208,0.00487895,70063.0,70030.0,0.07139744]
[1773168078427,0.00487895,70063.0,70033.0,0.07151478]
[1773168079440,0.03,70061.0,70041.0,0.00461012]
[1773168079644,0.03772159,70065.0,70041.0,0.00461012]
[1773168079645,0.00037542,70066.0,70050.0,0.16273044]
[1773168079844,0.00023,70075.0,70050.0,0.16273044]
[1773168079845,0.01849294,70074.0,70052.0,0.00461012]
[1773168080048,0.00152,70076.0,70059.0,0.00461012]
[1773168080193,0.00152,70076.0,70060.0,0.00152]
[1773168080388,0.00152,70076.0,70059.0,0.00461012]
[1773168080593,0.00152,70076.0,70061.0,0.00152]
[1773168081444,0.00152,70076.0,70062.0,0.07136536]
[1773168081748,0.00152,70085.0,70063.0,0.00461012]
[1773168081895,0.00152,70085.0,70063.0,0.00152]
[1773168082296,0.00152,70085.0,70062.0,0.07288536]
[1773168082498,0.00152,70085.0,70060.0,0.07136536]
[1773168082906,0.00485076,70084.0,70059.0,0.07136739]
[1773168084417,0.03,70082.0,70056.0,0.07136841]
[1773168085151,0.03,70082.0,70060.0,0.16273044]
[1773168085355,0.00023,70100.0,70071.0,0.00461012]
[1773168085356,0.00152,70094.0,70071.0,0.00461012]
[1773168085558,0.00152,70094.0,70072.0,0.00152]
[1773168085966,0.00152,70094.0,70073.0,0.00461012]
[1773168086373,0.00152,70094.0,70074.0,0.07135314]
[1773168087405,0.00152,70094.0,70075.0,0.00152]
[1773168087607,0.00023,70100.0,70081.0,0.16487196]
[1773168087810,0.00023,70100.0,70082.0,0.00461012]
[1773168088143,0.00023,70100.0,70083.0,0.00152]
[1773168088310,0.00023,70100.0,70084.0,0.07134295]
[1773168088606,0.03,70098.0,70079.0,0.07134752]
[1773168089616,0.03,70099.0,70079.0,0.07134752]
[1773168090169,0.03,70099.0,70083.0,0.0002]
[1773168090416,0.07617323,70105.0,70083.0,0.0002]
[1773168090417,0.00022001,70111.0,70085.0,0.16349889]
[1773168090620,0.00022001,70111.0,70089.0,0.16273044]
[1773168090793,0.00022001,70111.0,70089.0,0.16734056]
[1773168091008,0.00022001,70111.0,70090.0,0.00152]
[1773168091413,0.00022001,70111.0,70091.0,0.00152]
[1773168092099,0.03,70116.0,70092.0,0.00461012]
[1773168092252,0.03,70115.0,70092.0,0.00461012]
[1773168092581,0.03,70115.0,70094.0,0.00461012]
[1773168092774,0.03,70115.0,70093.0,0.07133379]
[1773168093145,0.03,70113.0,70093.0,0.07133379]
[1773168093326,0.03,70113.0,70093.0,0.07285379]
[1773168093773,0.03,70113.0,70093.0,0.07133379]
[1773168094018,0.03,70113.0,70085.0,0.16810901]
[1773168094019,0.03,70109.0,70080.0,0.00152]
[1773168094297,0.00485076,70106.0,70083.0,0.07154353]
[1773168094644,0.03,70104.0,70086.0,0.07134036]
[1773168094849,0.00485076,70103.0,70083.0,0.0002]
[1773168095046,0.00485076,70103.0,70075.0,0.07189412]
[1773168096359,0.00152,70102.0,70076.0,0.00461012]
[1773168096542,0.031,70103.0,70076.0,0.00461012]
[1773168096750,0.03252,70103.0,70077.0,0.07135008]
[1773168096989,0.03252,70103.0,70082.0,0.16492509]
[1773168096990,0.031,70103.0,70082.0,0.16492509]
[1773168097205,0.031,70103.0,70083.0,0.00152]
[1773168097404,0.001,70103.0,70083.0,0.00152]
[1773168097538,0.03,70105.0,70084.0,0.00461012]
[1773168097741,0.001,70103.0,70085.0,0.00152]
[1773168098158,0.03,70105.0,70085.0,0.00152]
[1773168098343,0.03,70110.0,70085.0,0.00152]
[1773168098536,0.03,70110.0,70084.0,0.00461012]
[1773168098537,0.10131661,70110.0,70084.0,0.00461012]
[1773168098761,0.10131661,70110.0,70086.0,0.07134092]
[1773168098762,0.17769327,70109.0,70086.0,0.07134092]
[1773168098968,0.03,70108.0,70086.0,0.07134092]
[1773168099164,0.00485076,70107.0,70084.0,0.07134281]
[1773168099569,0.00485076,70107.0,70081.0,0.00152]
[1773168099570,0.00485076,70107.0,70081.0,0.07134526]
[1773168099768,0.00485076,70107.0,70049.0,0.17124]
[1773168099769,0.00485076,70107.0,70074.0,0.07135248]
[1773168099969,0.00485076,70107.0,70075.0,0.07189407]
[1773168100842,0.00485076,70104.0,70075.0,0.07189407]
[1773168101505,0.00152,70103.0,70075.0,0.00054256]
[1773168101712,0.00485076,70098.0,70075.0,0.07189403]
[1773168102300,0.00485076,70098.0,70068.0,0.00562]
[1773168102527,0.00496342,70098.0,70068.0,0.00562]
[1773168102825,0.00496342,70098.0,70068.0,0.07697907]
[1773168103129,0.00485076,70095.0,70068.0,0.00562]
[1773168103330,0.00485076,70093.0,70068.0,0.00562]
[1773168104094,0.00485076,70093.0,70069.0,0.07135823]
[1773168104297,0.00152,70092.0,70069.0,0.07135823]
[1773168104507,0.00485076,70091.0,70069.0,0.07135823]
[1773168104708,0.00485076,70091.0,70068.0,0.07697889]
[1773168105089,0.03,70090.0,70068.0,0.07697889]
[1773168105602,0.00485076,70089.0,70068.0,0.07697889]
[1773168106018,0.03,70090.0,70068.0,0.07697889]
[1773168106573,0.03,70090.0,70069.0,0.00152]
[1773168106712,0.03,70090.0,70070.0,0.00152]
[1773168107220,0.03,70090.0,70068.0,0.07697889]
[1773168107221,0.03451484,70088.0,70068.0,0.07697889]
[1773168107419,0.03,70088.0,70068.0,0.07697889]
[1773168107620,0.03,70088.0,70069.0,0.00451401]
[1773168107820,0.03,70088.0,70070.0,0.16425044]
[1773168108042,0.07132274,70104.0,70070.0,0.16425044]
[1773168108043,0.07132402,70103.0,70071.0,0.00451401]
[1773168108243,0.00152,70106.0,70071.0,0.00451401]
[1773168108244,0.03,70097.0,70071.0,0.00451401]
[1773168108420,0.00451484,70096.0,70068.0,0.07697889]
[1773168108621,0.00451484,70096.0,70072.0,0.00152]
[1773168108844,0.00152,70095.0,70072.0,0.00152]
[1773168109358,0.0714415,70098.0,70075.0,0.00459507]
[1773168109359,0.03,70096.0,70075.0,0.00459507]
[1773168110134,0.00023,70100.0,70081.0,0.1586009]
[1773168110341,0.07714297,70124.0,70091.0,0.00459507]
[1773168110342,0.03,70114.0,70091.0,0.00459507]
[1773168110534,0.03,70114.0,70092.0,0.00152]
[1773168110861,0.03,70114.0,70093.0,0.00152]
[1773168111015,0.03,70114.0,70083.0,0.00459507]
[1773168111208,0.03,70112.0,70085.0,0.07134194]
[1773168111508,0.07131345,70113.0,70081.0,0.00011266]
[1773168111509,0.03,70107.0,70081.0,0.00011266]
[1773168111673,0.00454761,70105.0,70081.0,0.07145814]
[1773168111823,0.00454761,70105.0,70081.0,0.07145861]
[1773168112646,0.00454761,70105.0,70081.0,0.0714583]
[1773168113391,0.00454761,70102.0,70081.0,0.00011266]
[1773168113897,0.00454761,70102.0,70081.0,0.00163266]
[1773168114687,0.21132152,70105.0,70081.0,0.00163266]
[1773168114688,0.21032152,70105.0,70081.0,0.00163266]
[1773168114887,0.00152,70113.0,70084.0,0.00459507]
[1773168115063,0.00454761,70120.0,70100.0,0.00023]
[1773168115064,0.00152,70112.0,70100.0,0.00023]
[1773168115271,0.17668583,70108.0,70089.0,0.00152]
[1773168115470,0.17668583,70108.0,70084.0,0.00459507]
[1773168115668,0.17668583,70108.0,70082.0,0.16206764]
[1773168116028,0.16642373,70138.0,70090.0,0.16290155]
[1773168116303,0.001,70112.0,70091.0,0.00459507]
[1773168116677,0.001,70112.0,70092.0,0.00152]
[1773168116913,0.001,70112.0,70091.0,0.00459507]
[1773168117111,0.001,70112.0,70092.0,0.00152]
[1773168117317,0.03,70111.0,70092.0,0.07285481]
[1773168117470,0.03,70111.0,70092.0,0.07133481]
[1773168118012,0.03,70111.0,70092.0,0.07285481]
[1773168118944,0.03,70111.0,70093.0,0.00152]
[1773168119281,0.1013165,70110.0,70094.0,0.00152]
[1773168119673,0.1013165,70110.0,70091.0,0.07133481]
[1773168119674,0.1013165,70110.0,70077.0,0.07134909]
[1773168119879,0.1013165,70110.0,70072.0,0.00459507]
[1773168119880,0.00454761,70107.0,70076.0,0.07135016]
[1773168120095,0.03,70099.0,70076.0,0.07135106]
[1773168120424,0.03,70099.0,70081.0,0.07165812]
[1773168120577,0.03,70099.0,70084.0,0.00459507]
[1773168120779,0.03,70099.0,70085.0,0.00459507]
[1773168120978,0.03,70098.0,70081.0,0.07165812]
[1773168121180,0.03,70098.0,70082.0,0.00152]
[1773168121376,0.10132885,70098.0,70083.0,0.07134397]
[1773168122126,0.03,70099.0,70084.0,0.18027226]
[1773168122326,0.10132778,70099.0,70085.0,0.00459507]
[1773168122827,0.03,70099.0,70086.0,0.00152]
[1773168123123,0.03,70099.0,70083.0,0.07134397]
[1773168123124,0.10132805,70099.0,70083.0,0.07134397]
[1773168123426,0.10132805,70099.0,70081.0,0.00031266]
[1773168123427,0.03,70091.0,70081.0,0.00031266]
[1773168123742,0.03,70091.0,70081.0,0.07165772]
[1773168123887,0.03,70091.0,70081.0,0.00031266]
[1773168124103,0.03,70089.0,70075.0,0.00023]
[1773168124307,0.03,70085.0,70070.0,0.0002]
[1773168124515,0.00011271,70089.0,70052.0,0.07137554]
[1773168124516,0.03,70081.0,70052.0,0.07137554]
[1773168124718,0.03,70077.0,70052.0,0.07137554]
[1773168124970,0.03,70077.0,70053.0,0.00152]
[1773168125693,0.07286066,70087.0,70060.0,0.16290155]
[1773168125814,0.03,70086.0,70061.0,0.00152]
[1773168126233,0.03,70082.0,70054.0,0.07137351]
[1773168126447,0.07134092,70086.0,70054.0,0.07137351]
[1773168126448,0.03,70078.0,70054.0,0.07137351]
[1773168126722,0.17668583,70079.0,70055.0,0.00152]
[1773168126723,0.03,70072.0,70055.0,0.00152]
[1773168126948,0.03,70072.0,70061.0,0.0002]
[1773168127143,0.00152,70082.0,70061.0,0.0002]
[1773168127375,0.00152,70082.0,70062.0,0.00152]
[1773168127567,0.01249594,70079.0,70063.0,0.07136434]
[1773168127779,0.03,70078.0,70063.0,0.07136434]
[1773168128121,0.03,70078.0,70064.0,0.00152]
[1773168128726,0.07133639,70091.0,70065.0,0.00152]
[1773168129068,0.07285031,70097.0,70070.0,0.16290155]
[1773168129247,0.07285031,70097.0,70063.0,0.07136434]
[1773168129248,0.07155288,70094.0,70063.0,0.07136434]
[1773168129434,0.07133399,70093.0,70065.0,0.0713623]
[1773168129863,0.0715538,70094.0,70065.0,0.0713623]
[1773168129864,0.00022001,70094.0,70065.0,0.0713623]
[1773168130207,0.00022001,70094.0,70066.0,0.00152]
[1773168130762,0.00022001,70094.0,70070.0,0.16290155]
[1773168131156,0.00022001,70094.0,70060.0,0.34255996]
[1773168131360,0.00022001,70094.0,70040.0,0.03796816]
[1773168131361,0.00022001,70094.0,70041.0,0.0142782]
[1773168131362,0.17668583,70074.0,70041.0,0.0142782]
[1773168131611,0.07287415,70073.0,70043.0,0.0142782]
[1773168131804,0.00152,70072.0,70043.0,0.0142782]
[1773168131954,0.00152,70072.0,70040.0,0.07700675]
[1773168131955,0.16290155,70070.0,70040.0,0.07700756]
[1773168132155,0.16290155,70070.0,70041.0,0.00152]
[1773168132557,0.16290155,70070.0,70041.0,0.00252]
[1773168132759,0.16290155,70070.0,70038.0,0.07138961]
[1773168132760,0.16290155,70060.0,70036.0,0.00152]
[1773168132969,0.00152,70059.0,70036.0,0.00152]
[1773168133618,0.07136943,70058.0,70037.0,0.07139083]
[1773168134015,0.07148205,70058.0,70037.0,0.07139083]
[1773168134601,0.00011262,70058.0,70038.0,0.0142782]
[1773168134802,0.00011262,70058.0,70039.0,0.00152]
[1773168135001,0.00011262,70058.0,70039.0,0.0157982]
[1773168135826,0.00011262,70058.0,70040.0,0.07138777]
[1773168135997,0.00111262,70058.0,70040.0,0.07138777]
[1773168136374,0.00011262,70058.0,70040.0,0.07138777]
[1773168136783,0.00011262,70058.0,70041.0,0.0142782]
[1773168137309,0.07136214,70066.0,70041.0,0.0142782]
[1773168137500,0.07136214,70066.0,70043.0,0.0142782]
[1773168137992,0.07136214,70066.0,70046.0,0.0142782]
[1773168138360,0.00562,70068.0,70046.0,0.0142782]
[1773168138505,0.07136026,70067.0,70046.0,0.0142782]
[1773168138703,0.03,70066.0,70046.0,0.0142782]
[1773168140146,0.03,70065.0,70048.0,0.0142782]
[1773168140549,0.03,70065.0,70047.0,0.07138064]
[1773168141012,0.03,70065.0,70041.0,0.07328115]
[1773168141212,0.00152,70064.0,70041.0,0.07176204]
[1773168141630,0.00152,70064.0,70042.0,0.0142782]
[1773168141830,0.03,70065.0,70042.0,0.0142782]
[1773168142029,0.03,70064.0,70042.0,0.0142782]
[1773168142238,0.03,70064.0,70044.0,0.0142782]
[1773168142436,0.10236336,70064.0,70044.0,0.0142782]
[1773168142620,0.031,70064.0,70044.0,0.0142782]
[1773168142824,0.10236335,70064.0,70044.0,0.0142782]
[1773168143031,0.10236335,70064.0,70045.0,0.00152]
[1773168143681,0.10236335,70064.0,70046.0,0.00152]
[1773168143886,0.03,70063.0,70047.0,0.0142782]
[1773168144239,0.03,70063.0,70048.0,0.07137962]
[1773168144718,0.03,70063.0,70049.0,0.0142782]
[1773168144906,0.03,70062.0,70049.0,0.0142782]
[1773168145067,0.0769801,70068.0,70048.0,0.07137962]
[1773168145267,0.0769801,70068.0,70049.0,0.00152]
[1773168145874,0.03,70067.0,70049.0,0.00152]
[1773168146070,0.03,70067.0,70050.0,0.0142782]
[1773168146477,0.03,70065.0,70051.0,0.07137656]
[1773168147433,0.03,70065.0,70052.0,0.00152]
[1773168147803,0.07287488,70073.0,70052.0,0.00152]
[1773168147804,0.07134239,70085.0,70052.0,0.00152]
[1773168148007,0.07134821,70079.0,70055.0,0.0142782]
[1773168148319,0.07158216,70075.0,70055.0,0.0142782]
[1773168148530,0.07158216,70075.0,70056.0,0.00152]
[1773168148728,0.03,70074.0,70051.0,0.07137656]
[1773168148902,0.03,70074.0,70055.0,0.0142782]
[1773168149278,0.03,70074.0,70056.0,0.00152]
[1773168149552,0.03,70074.0,70057.0,0.00152]
[1773168149714,0.03,70074.0,70058.0,0.0142782]
[1773168150155,0.03,70074.0,70059.0,0.00152]
[1773168150308,0.03,70074.0,70051.0,0.26715079]
[1773168150512,0.03,70072.0,70050.0,0.07137656]
[1773168150926,0.03,70072.0,70051.0,0.00152]
[1773168151127,0.00152,70071.0,70052.0,0.00152]
[1773168151484,0.00152,70071.0,70046.0,0.07138142]
[1773168151633,0.00152,70071.0,70048.0,0.00152]
[1773168152041,0.00152,70071.0,70046.0,0.07138142]
[1773168152359,0.00252,70071.0,70042.0,0.07138524]
[1773168152555,0.03,70069.0,70042.0,0.07138524]
[1773168153060,0.03,70069.0,70044.0,0.0142782]
[1773168153260,0.03,70069.0,70045.0,0.00152]
[1773168153619,0.03,70069.0,70046.0,0.00152]
[1773168154500,0.031,70069.0,70046.0,0.00152]
[1773168154654,0.03,70067.0,70044.0,0.07138363]
[1773168155131,0.03,70067.0,70045.0,0.00152]
[1773168155331,0.03,70067.0,70045.0,0.0157982]
[1773168155533,0.00152,70066.0,70045.0,0.0157982]
[1773168155730,0.03,70067.0,70045.0,0.0142782]
[1773168155954,0.03,70067.0,70047.0,0.0142782]
[1773168156161,0.03,70067.0,70048.0,0.00152]
[1773168156337,0.03,70067.0,70049.0,0.00152]
[1773168156536,0.03,70065.0,70047.0,0.0142782]
[1773168156738,0.03,70065.0,70048.0,0.00152]
[1773168156944,0.03,70065.0,70047.0,0.08565827]
[1773168157140,0.03,70065.0,70048.0,0.00152]
[1773168157342,0.03,70065.0,70047.0,0.0142782]
[1773168157548,0.03,70065.0,70044.0,0.00152]
[1773168157959,0.03,70065.0,70041.0,0.00057542]
[1773168158609,0.03,70063.0,70042.0,0.00152]
[1773168158811,0.00152,70062.0,70042.0,0.08566376]
[1773168159025,0.03152,70063.0,70044.0,0.0142782]
[1773168159783,0.03152,70063.0,70045.0,0.00152]
[1773168159981,0.03152,70063.0,70050.0,1.0]
[1773168160418,0.03152,70063.0,70050.0,1.00152]
[1773168160597,0.03,70061.0,70050.0,1.00152]
[1773168161426,0.03,70061.0,70050.0,1.07137758]
[1773168161576,0.03,70061.0,70050.0,1.0]
[1773168161772,0.03,70061.0,70051.0,0.00152]
[1773168161978,0.031,70061.0,70051.0,0.00152]
[1773168162175,0.03,70060.0,70051.0,0.07137656]
[1773168162379,0.07135721,70070.0,70053.0,0.0142782]
[1773168162582,0.07157722,70071.0,70054.0,0.07137351]
[1773168162583,0.077385,70061.0,70054.0,0.07137351]
[1773168162839,0.0713604,70067.0,70055.0,0.0142782]
[1773168163047,0.07157633,70071.0,70055.0,0.0142782]
[1773168163247,0.03,70078.0,70055.0,0.01593985]
[1773168163445,0.17686,70096.0,70061.0,0.01593985]
[1773168163446,0.07133787,70089.0,70061.0,0.01593985]
[1773168163657,0.0716994,70090.0,70063.0,0.01593985]
[1773168164220,0.03,70089.0,70063.0,0.01593985]
[1773168164516,0.03,70089.0,70065.0,0.01593985]
[1773168164715,0.00022001,70094.0,70071.0,0.01593985]
[1773168164937,0.00023,70100.0,70081.0,0.01593985]
[1773168165270,0.00022001,70090.0,70083.0,0.01593985]
[1773168165415,0.00022001,70099.0,70085.0,0.01593985]
[1773168165615,0.00022001,70099.0,70071.0,0.00011279]
[1773168165616,0.00023,70100.0,70087.0,0.01593985]
[1773168165821,0.07132071,70106.0,70089.0,0.01593985]
[1773168166017,0.0713187,70108.0,70091.0,0.01593985]
[1773168166219,0.00022001,70109.0,70093.0,0.01593985]
[1773168166422,0.0003623,70110.0,70095.0,0.01593985]
[1773168166620,0.0003623,70110.0,70098.0,0.07132871]
[1773168166821,0.0003623,70110.0,70099.0,0.0158658]
[1773168167268,0.0003623,70110.0,70101.0,0.0158658]
[1773168167440,0.00022001,70116.0,70101.0,0.0158658]
[1773168167643,0.00022001,70116.0,70098.0,0.07132871]
[1773168167644,0.03,70115.0,70098.0,0.07132871]
[1773168167849,0.03,70115.0,70099.0,0.0173858]
[1773168168050,0.03,70115.0,70098.0,0.07132871]
[1773168168051,0.03,70115.0,70101.0,0.0158658]
[1773168168235,0.0713004,70126.0,70101.0,0.0158658]
[1773168168562,0.0713004,70126.0,70101.0,0.01597855]
[1773168168762,0.07129547,70131.0,70104.0,0.0158658]
[1773168168763,0.10714261,70124.0,70104.0,0.0158658]
[1773168169168,0.10714261,70124.0,70105.0,0.00152]
[1773168169368,0.10714261,70124.0,70106.0,0.0158658]
[1773168169573,0.10714271,70124.0,70106.0,0.0158658]
[1773168170485,0.10714264,70124.0,70106.0,0.0158658]
[1773168170865,0.10714264,70124.0,70108.0,0.0158658]
[1773168170866,0.03,70123.0,70108.0,0.0158658]
[1773168171072,0.03,70123.0,70107.0,0.07131955]
[1773168171245,0.03,70123.0,70108.0,0.0173858]
[1773168171446,0.03,70123.0,70110.0,0.0158658]
[1773168171647,0.07128738,70139.0,70112.0,0.0158658]
[1773168171863,0.03,70139.0,70112.0,0.01578907]
[1773168172062,0.03,70139.0,70114.0,0.01582744]
[1773168172292,0.03,70139.0,70115.0,0.00152]
[1773168172470,0.07128137,70145.0,70115.0,0.01582744]
[1773168172801,0.00022001,70148.0,70123.0,0.01582744]
[1773168173001,0.10149805,70148.0,70125.0,0.01582744]
[1773168173321,0.10149824,70148.0,70125.0,0.01582744]
[1773168173456,0.01078131,70149.0,70127.0,0.01582744]
[1773168173656,1e-08,70149.0,70131.0,0.01582744]
[1773168173977,1e-08,70149.0,70133.0,0.01582744]
[1773168173978,0.00037599,70149.0,70133.0,0.01582744]
[1773168174144,0.00037599,70149.0,70135.0,0.01582744]
[1773168174346,0.00037599,70149.0,70137.0,0.01582744]
[1773168174548,0.03037599,70149.0,70138.0,0.00152]
[1773168174986,0.10165336,70149.0,70138.0,0.07128803]
[1773168175155,0.03037599,70149.0,70138.0,0.07128803]
[1773168175571,0.03037599,70149.0,70138.0,0.07113992]
[1773168175928,0.03,70148.0,70138.0,0.07113992]
[1773168176332,0.03,70148.0,70139.0,0.00152]
[1773168176583,0.03,70148.0,70138.0,0.07113992]
[1773168176808,0.03,70148.0,70123.0,0.07130328]
[1773168176809,0.03,70146.0,70123.0,0.07130328]
[1773168176944,0.03,70146.0,70124.0,0.00152]
[1773168177145,0.03,70146.0,70120.0,0.08660523]
[1773168177146,0.03,70146.0,70120.0,0.07130557]
[1773168177394,0.03,70139.0,70113.0,0.07131345]
[1773168177594,0.03,70137.0,70113.0,0.07131345]
[1773168177798,0.00152,70136.0,70113.0,0.07131345]
[1773168177999,0.00152,70136.0,70112.0,0.07131356]
[1773168178368,0.00152,70136.0,70113.0,0.00152]
[1773168178572,0.00152,70136.0,70114.0,0.00152]
[1773168178770,0.03,70134.0,70112.0,0.01542638]
[1773168179173,0.03,70134.0,70113.0,0.00152]
[1773168179372,0.03,70134.0,70113.0,0.01571305]
[1773168179552,0.03,70134.0,70114.0,0.00152]
[1773168179758,0.03,70134.0,70115.0,0.00152]
[1773168179992,0.03,70134.0,70116.0,0.00152]
[1773168180203,0.03,70134.0,70117.0,0.00152]
[1773168180419,0.03,70134.0,70113.0,0.01571305]
[1773168180784,0.03,70134.0,70103.0,0.07132362]
[1773168180785,0.07129819,70128.0,70103.0,0.07132362]
[1773168180994,0.03152,70127.0,70104.0,0.01723305]
[1773168181215,0.03152,70127.0,70106.0,0.01567785]
[1773168181375,0.03,70127.0,70106.0,0.01567785]
[1773168181780,0.03,70127.0,70104.0,0.01567785]
[1773168181998,0.03,70127.0,70105.0,0.00152]
[1773168182212,0.03,70127.0,70106.0,0.01567785]
[1773168182417,0.03,70127.0,70106.0,0.01719785]
[1773168182675,0.03,70127.0,70106.0,0.01567785]
[1773168182882,0.07130023,70126.0,70107.0,0.07131955]
[1773168183162,0.07130023,70126.0,70105.0,0.07143355]
[1773168183163,0.00152,70125.0,70105.0,0.00011275]
[1773168183311,0.00152,70125.0,70108.0,0.00152]
[1773168183709,0.00152,70125.0,70105.0,0.07143415]
[1773168183909,0.00152,70125.0,70105.0,0.00011275]
[1773168184134,0.00277135,70125.0,70106.0,0.00152]
[1773168184562,0.00252,70125.0,70106.0,0.00152]
[1773168184764,0.00152,70125.0,70106.0,0.00152]
[1773168184944,0.07130226,70124.0,70106.0,0.00152]
[1773168185146,0.0008076,70123.0,70105.0,1e-08]
[1773168185676,0.07130226,70124.0,70106.0,0.01185808]
[1773168185970,0.03,70123.0,70106.0,0.01185808]
[1773168186116,0.03,70123.0,70108.0,0.01185808]
[1773168186328,0.03,70123.0,70110.0,0.01185808]
[1773168186853,0.03,70123.0,70111.0,0.08317356]
[1773168186854,0.03,70122.0,70111.0,0.08317356]
[1773168187028,0.03,70122.0,70112.0,0.01185808]
[1773168187227,0.03,70122.0,70113.0,0.00152]
[1773168187433,0.07130226,70125.0,70113.0,0.00152]
[1773168187434,0.07130139,70125.0,70114.0,0.01185808]
[1773168187880,0.03,70125.0,70114.0,0.01185808]
[1773168188249,0.03,70125.0,70114.0,0.01170998]
[1773168188657,0.03,70125.0,70115.0,0.00152]
[1773168188861,0.03,70124.0,70117.0,0.01178403]
[1773168189291,0.03,70124.0,70106.0,0.07132057]
[1773168189587,0.03,70124.0,70107.0,0.0122523]
[1773168189794,0.03,70124.0,70090.0,0.10571714]
[1773168190012,0.03,70123.0,70099.0,0.0107323]
[1773168190182,0.03,70123.0,70101.0,0.0107323]
[1773168190394,0.00011271,70124.0,70101.0,0.0107323]
[1773168190610,0.07129387,70133.0,70101.0,0.0107323]
[1773168190925,0.07129387,70133.0,70106.0,0.0107323]
[1773168191077,0.00022001,70136.0,70111.0,0.0107323]
[1773168191275,0.07151155,70135.0,70111.0,0.01028806]
[1773168191523,0.00022001,70135.0,70110.0,0.16258506]
[1773168191761,1e-08,70136.0,70121.0,0.0107323]
[1773168191893,1e-08,70136.0,70123.0,0.0107323]
[1773168192097,1e-08,70136.0,70105.0,0.07132158]
[1773168192098,0.03,70135.0,70105.0,0.07132158]
[1773168192428,0.03,70135.0,70106.0,0.0122523]
[1773168192605,0.03,70135.0,70107.0,0.00152]
[1773168192802,0.03,70135.0,70107.0,0.0122523]
[1773168193007,0.03,70133.0,70108.0,0.07131853]
[1773168193228,0.03,70133.0,70109.0,0.00152]
[1773168193544,0.03,70133.0,70110.0,0.00152]
[1773168193703,0.03,70133.0,70111.0,0.01058425]
[1773168194145,0.00014807,70112.0,70108.0,0.07131853]
[1773168194348,0.04097345,70133.0,70108.0,0.07131853]
[1773168194553,0.00152,70132.0,70108.0,0.07131853]
[1773168194703,0.00152,70132.0,70109.0,0.00152]
[1773168194903,0.00152,70132.0,70108.0,0.07117047]
[1773168195116,0.03,70130.0,70109.0,0.00152]
[1773168195318,0.03,70130.0,70110.0,0.00152]
[1773168195540,0.03,70130.0,70111.0,0.00152]
[1773168195741,0.03,70130.0,70112.0,0.00152]
[1773168196165,0.01074741,70127.0,70107.0,0.00011271]
[1773168196358,0.03152,70126.0,70108.0,0.00152]
[1773168197003,0.03,70126.0,70109.0,0.0107323]
[1773168197210,0.03,70124.0,70111.0,0.0107323]
[1773168197336,0.001,70130.0,70111.0,0.0107323]
[1773168197550,0.07229674,70130.0,70111.0,0.0107323]
[1773168197773,0.07229674,70130.0,70110.0,0.0713165]
[1773168197774,0.07229674,70130.0,70113.0,0.0107323]
[1773168198197,0.03,70129.0,70113.0,0.0107323]
[1773168198404,0.03,70129.0,70110.0,0.0713165]
[1773168198603,0.03,70129.0,70103.0,0.0713228]
[1773168198604,0.03,70123.0,70096.0,0.07520052]
[1773168198801,0.03,70121.0,70097.0,0.00152]
[1773168199011,0.00152,70120.0,70096.0,0.07520052]
[1773168199234,0.03,70118.0,70097.0,0.07284871]
[1773168199413,0.03,70118.0,70097.0,0.07132871]
[1773168199610,0.03,70118.0,70096.0,0.07520017]
[1773168199783,0.03,70118.0,70097.0,0.00152]
[1773168199985,0.03,70118.0,70096.0,0.0752007]
[1773168200185,0.03,70118.0,70100.0,0.00048]
[1773168200492,0.03,70118.0,70101.0,0.00969197]
[1773168201058,0.03,70118.0,70102.0,0.00152]
[1773168201198,0.03,70116.0,70104.0,0.0713226]
[1773168201394,0.03,70116.0,70104.0,0.07117458]
[1773168201839,0.03,70116.0,70104.0,0.07102658]
[1773168201997,0.03,70116.0,70105.0,0.00969197]
[1773168202200,0.03,70116.0,70106.0,0.00152]